lending/lending_fUSD_20240603
["ID","MTS","AMOUNT","RATE_DAILY","PERIOD"]
[328440195,1717389056291,-150.0,0.0003,2]
[328440196,1717389056302,-300.0,0.0003,2]
[328440197,1717389056313,-150.0,0.0003,2]
[328440198,1717389056324,-150.0,0.0003,2]
[328440199,1717389056335,-150.0,0.0003,2]
[328440200,1717389056344,-150.0,0.0003,2]
[328440201,1717389056354,-150.0,0.0003,2]
[328440202,1717389056364,-150.0,0.0003,2]
[328440203,1717389056374,-150.0,0.0003,2]
[328440204,1717389056384,-150.0,0.0003,2]
[328440205,1717389056394,-150.0,0.00030095,2]
[328440206,1717389056405,-347.0,0.00030096,5]
[328440207,1717389056416,-2155.97200655,0.00030133,2]
[328440208,1717389056426,-511.53706851,0.00030136,5]
[328440209,1717389056436,-500.0,0.00030136,4]
[328440210,1717389056451,-150.0,0.00030136,4]
[328440211,1717389056461,-500.0,0.00030136,4]
[328440212,1717389056471,-500.0,0.00030136,4]
[328440213,1717389056484,-226.56151903,0.00030136,4]
[328440214,1717389056494,-500.0,0.00030136,4]
[328440215,1717389056504,-500.0,0.00030136,4]
[328440216,1717389056514,-500.0,0.00030136,4]
[328440217,1717389056524,-494.63001917,0.00030136,4]
[328440218,1717389056535,-168.99306909,0.00030136,4]
[328440219,1717389056547,-500.0,0.00030136,4]
[328440220,1717389056559,-1568.09,0.00030136,4]
[328440221,1717389056569,-4687.56,0.00030136,4]
[328440222,1717389056578,-1548.33,0.00030136,4]
[328440223,1717389056589,-4104.15,0.00030136,4]
[328440224,1717389056599,-1535.91,0.00030136,4]
[328440225,1717389056608,-254.66335065,0.00030136,4]
[328440226,1717389056619,-910.08,0.00030136,4]
[328440227,1717389056630,-696.56,0.00030136,4]
[328440228,1717389056641,-500.0,0.00030136,4]
[328440229,1717389056651,-1151.42,0.00030136,4]
[328440230,1717389056661,-1173.66,0.00030136,4]
[328440231,1717389056672,-5921.43,0.00030136,4]
[328440232,1717389056682,-539.44,0.00030136,4]
[328440233,1717389056692,-848.91,0.00030136,4]
[328440234,1717389056702,-1286.49,0.00030136,4]
[328440235,1717389056712,-500.0,0.00030136,4]
[328440236,1717389056723,-632.25,0.00030136,4]
[328440237,1717389056733,-559.62,0.00030136,4]
[328440238,1717389056744,-211.42374329,0.00030136,4]
[328440239,1717389056755,-565.7,0.00030136,4]
[328440240,1717389056766,-540.27759619,0.00030136,4]
[328440241,1717389056782,-662.47809905,0.00030136,4]
[328440242,1717389056795,-915.98430476,0.00030136,4]
[328440243,1717389056804,-651.84,0.00030136,4]
[328440244,1717389056814,-909.21,0.00030136,4]
[328440245,1717389056824,-537.35,0.00030136,4]
[328440246,1717389056836,-500.0,0.00030136,4]
[328440247,1717389056846,-982.23,0.00030136,4]
[328440248,1717389056855,-2561.68569524,0.00030136,4]
[328440249,1717389057098,-1931.40430476,0.00030136,4]
[328440250,1717389057107,-500.0,0.00030136,4]
[328440251,1717389057118,-719.21,0.00030136,4]
[328440252,1717389057129,-793.36,0.00030136,4]
[328440253,1717389057141,-633.56,0.00030136,4]
[328440254,1717389057151,-319.38569524,0.00030136,4]
[328440255,1717389057163,-180.61430476,0.00030136,4]
[328440256,1717389057174,-479.33548765,0.00030136,4]
[328440257,1717389057186,-922.8938064,0.00030136,4]
[328440258,1717389057198,-261.84070595,0.00030136,4]
[328440259,1717389057208,-434.35929405,0.00030136,4]
[328440260,1717389057221,-141.93070595,0.00030136,4]
[328440261,1717389057231,-127.52640471,0.00030136,4]
[328440262,1717389057242,-372.47359529,0.00030136,4]
[328440263,1717389057252,-732.02,0.00030136,4]
[328440264,1717389057262,-1096.54,0.00030136,4]
[328440265,1717389057271,-583.29,0.00030136,4]
[328440266,1717389057282,-500.0,0.00030136,4]
[328440267,1717389057292,-574.86,0.00030136,4]
[328440268,1717389057302,-1037.87,0.00030136,4]
[328440269,1717389057312,-1896.28,0.00030136,4]
[328440270,1717389057323,-848.97,0.00030136,4]
[328440271,1717389057333,-375.9516266,0.00030136,4]
[328440272,1717389057347,-994.65,0.00030136,4]
[328440273,1717389057545,-500.0,0.00030136,4]
[328440274,1717389057554,-696.39,0.00030136,4]
[328440275,1717389057564,-500.0,0.00030136,4]
[328440276,1717389057573,-1445.97,0.00030136,4]
[328440277,1717389057582,-855.5,0.00030136,4]
[328440278,1717389057597,-500.0,0.00030136,4]
[328440279,1717389057607,-509.19,0.00030136,4]
[328440280,1717389057616,-822.77,0.00030136,4]
[328440281,1717389057625,-500.0,0.00030136,4]
[328440282,1717389057634,-500.0,0.00030136,4]
[328440283,1717389057643,-815.25,0.00030136,4]
[328440284,1717389057653,-500.0,0.00030136,4]
[328440285,1717389057663,-559.21,0.00030136,4]
[328440286,1717389057672,-203.68924175,0.00030136,4]
[328440287,1717389057681,-208.25477639,0.00030136,4]
[328440288,1717389057690,-1934.31,0.00030136,4]
[328440289,1717389057699,-1176.86,0.00030136,4]
[328440290,1717389057708,-500.0,0.00030136,4]
[328440291,1717389057718,-2118.35,0.00030136,4]
[328440292,1717389057727,-759.25,0.00030136,4]
[328440293,1717389057736,-912.58,0.00030136,4]
[328440294,1717389057745,-500.0,0.00030136,4]
[328440295,1717389057755,-500.0,0.00030136,4]
[328440296,1717389057767,-1405.62,0.00030136,4]
[328440297,1717389057776,-1421.66,0.00030136,4]
[328440298,1717389057787,-500.0,0.00030136,4]
[328440299,1717389057797,-500.0,0.00030136,4]
[328440300,1717389057806,-566.0,0.00030136,4]
[328440301,1717389057816,-3946.44,0.00030136,4]
[328440302,1717389057828,-530.15,0.00030136,4]
[328440303,1717389057839,-1447.14,0.00030136,4]
[328440304,1717389057848,-818.94,0.00030136,4]
[328440305,1717389057857,-12791.31,0.00030136,4]
[328440306,1717389057866,-733.27,0.00030136,4]
[328440307,1717389057875,-500.0,0.00030136,4]
[328440308,1717389057885,-500.0,0.00030136,4]
[328440309,1717389057894,-768.52,0.00030136,4]
[328440310,1717389057905,-500.0,0.00030136,4]
[328440311,1717389057915,-500.0,0.00030136,4]
[328440312,1717389057924,-500.0,0.00030136,4]
[328440313,1717389057933,-500.0,0.00030136,4]
[328440314,1717389057943,-500.0,0.00030136,4]
[328440315,1717389057951,-22534.75,0.00030137,2]
[328440316,1717389057961,-528.13697381,0.00030141,4]
[328440317,1717389057970,-500.0,0.00030141,4]
[328440318,1717389057979,-2915.06,0.00030141,4]
[328440319,1717389057989,-982.37,0.00030141,4]
[328440320,1717389057999,-1544.48,0.00030141,4]
[328440321,1717389058008,-644.6,0.00030141,4]
[328440322,1717389058019,-547.39,0.00030141,4]
[328440323,1717389058029,-500.0,0.00030141,4]
[328440324,1717389058038,-1062.74,0.00030141,4]
[328440325,1717389058048,-1179.69,0.00030141,4]
[328440326,1717389058057,-785.78,0.00030141,4]
[328440327,1717389058067,-500.0,0.00030141,4]
[328440328,1717389058076,-500.0,0.00030141,4]
[328440329,1717389058087,-500.0,0.00030141,4]
[328440330,1717389058096,-1221.0,0.00030141,4]
[328440331,1717389058107,-748.54,0.00030141,4]
[328440332,1717389058116,-500.0,0.00030141,4]
[328440333,1717389058125,-801.18,0.00030141,4]
[328440334,1717389058136,-576.19,0.00030141,4]
[328440335,1717389058146,-1096.48,0.00030141,4]
[328440336,1717389058157,-525.18,0.00030141,4]
[328440337,1717389058167,-1379.61,0.00030141,4]
[328440338,1717389058177,-735.02,0.00030141,4]
[328440339,1717389058187,-500.0,0.00030141,4]
[328440340,1717389058197,-351.0,0.00030141,4]
[328440341,1717389058208,-500.0,0.00030141,4]
[328440342,1717389058218,-500.0,0.00030141,4]
[328440343,1717389058227,-500.0,0.00030142,4]
[328440344,1717389058236,-500.0,0.00030142,4]
[328440345,1717389058246,-500.0,0.00030142,4]
[328440346,1717389058256,-500.0,0.00030142,4]
[328440347,1717389058265,-500.0,0.00030142,4]
[328440348,1717389058275,-170.1541247,0.00030142,4]
[328440349,1717389058284,-500.0,0.00030142,4]
[328440350,1717389058293,-500.0,0.00030142,4]
[328440351,1717389058302,-500.0,0.00030142,4]
[328440352,1717389058312,-500.0,0.00030142,4]
[328440353,1717389058321,-500.0,0.00030142,4]
[328440354,1717389058331,-500.0,0.00030142,4]
[328440355,1717389058342,-500.0,0.00030142,4]
[328440356,1717389058351,-413.47133039,0.00030142,4]
[328440357,1717389058360,-541.29,0.00030142,4]
[328440358,1717389058369,-474.47578058,0.00030142,4]
[328440359,1717389058379,-500.0,0.00030142,4]
[328440360,1717389058388,-500.0,0.00030142,4]
[328440361,1717389058397,-500.0,0.00030142,4]
[328440362,1717389058406,-500.0,0.00030142,4]
[328440363,1717389058415,-500.0,0.00030142,4]
[328440364,1717389058424,-500.0,0.00030142,4]
[328440365,1717389058433,-812.33,0.00030142,4]
[328440366,1717389058450,-500.0,0.00030142,4]
[328440367,1717389058459,-500.0,0.00030142,4]
[328440368,1717389058469,-500.0,0.00030142,4]
[328440369,1717389058478,-601.111706,0.00030165,2]
[328440370,1717389058488,-721.375399,0.00030165,2]
[328440371,1717389058498,-318.108728,0.00030165,2]
[328440372,1717389058507,-1662.203406,0.000302,2]
[328440373,1717389058517,-150.0,0.00030232,2]
[328440374,1717389058528,-199.75179195,0.00030249,2]
[328440375,1717389058538,-333.00262892,0.00030249,2]
[328440376,1717389058547,-375.79,0.0003031,2]
[328440377,1717389058556,-153.66,0.0003031,2]
[328440378,1717389058566,-150.0,0.00030369,2]
[328440379,1717389058575,-155.0,0.000304,4]
[328440380,1717389058587,-874.43,0.000304,2]
[328440381,1717389058596,-1055.91,0.000304,2]
[328440382,1717389058605,-500.0,0.0003041,4]
[328440383,1717389058615,-150.0,0.0003041,4]
[328440384,1717389058625,-500.0,0.0003041,4]
[328440385,1717389058634,-500.0,0.0003041,4]
[328440386,1717389058643,-500.0,0.0003041,4]
[328440387,1717389058653,-500.0,0.0003041,4]
[328440388,1717389058664,-500.0,0.0003041,4]
[328440389,1717389058673,-500.0,0.0003041,4]
[328440390,1717389058682,-4687.56,0.0003041,4]
[328440391,1717389058692,-4104.15,0.0003041,4]
[328440392,1717389058703,-1535.91,0.0003041,4]
[328440393,1717389058712,-910.08,0.0003041,4]
[328440394,1717389058721,-696.56,0.0003041,4]
[328440395,1717389058733,-500.0,0.0003041,4]
[328440396,1717389058744,-1151.42,0.0003041,4]
[328440397,1717389058754,-1173.66,0.0003041,4]
[328440398,1717389058764,-5921.43,0.0003041,4]
[328440399,1717389058773,-539.44,0.0003041,4]
[328440400,1717389058782,-848.91,0.0003041,4]
[328440401,1717389058791,-1286.49,0.0003041,4]
[328440402,1717389058800,-500.0,0.0003041,4]
[328440403,1717389058810,-632.25,0.0003041,4]
[328440404,1717389058820,-559.62,0.0003041,4]
[328440405,1717389058829,-565.7,0.0003041,4]
[328440406,1717389058840,-2118.74,0.0003041,4]
[328440407,1717389058849,-651.84,0.0003041,4]
[328440408,1717389058858,-909.21,0.0003041,4]
[328440409,1717389058867,-537.35,0.0003041,4]
[328440410,1717389058875,-500.0,0.0003041,4]
[328440411,1717389058885,-982.23,0.0003041,4]
[328440412,1717389058895,-4493.09,0.0003041,4]
[328440413,1717389058904,-500.0,0.0003041,4]
[328440414,1717389058914,-719.21,0.0003041,4]
[328440415,1717389058924,-793.36,0.0003041,4]
[328440416,1717389058933,-633.56,0.0003041,4]
[328440417,1717389058942,-500.0,0.0003041,4]
[328440418,1717389058951,-1626.43889062,0.0003041,4]
[328440419,1717389058997,599.89049932,0.0002,2]
[328440420,1717389059095,-37.63110938,0.0003041,4]
[328440421,1717389059104,-576.29,0.0003041,4]
[328440422,1717389059114,-500.0,0.0003041,4]
[328440423,1717389059124,-732.02,0.0003041,4]
[328440424,1717389059133,-1096.54,0.0003041,4]
[328440425,1717389059143,-583.29,0.0003041,4]
[328440426,1717389059152,-500.0,0.0003041,4]
[328440427,1717389059162,-574.86,0.0003041,4]
[328440428,1717389059171,-1037.87,0.0003041,4]
[328440429,1717389059182,-414.03207111,0.0003041,4]
[328440430,1717389059195,-1482.24792889,0.0003041,4]
[328440431,1717389059206,-848.97,0.0003041,4]
[328440432,1717389059216,-994.65,0.0003041,4]
[328440433,1717389059226,-500.0,0.0003041,4]
[328440434,1717389059235,-696.39,0.0003041,4]
[328440435,1717389059246,-500.0,0.0003041,4]
[328440436,1717389059257,-1445.97,0.0003041,4]
[328440437,1717389059267,-855.5,0.0003041,4]
[328440438,1717389059276,-500.0,0.0003041,4]
[328440439,1717389059285,-509.19,0.0003041,4]
[328440440,1717389059297,-822.77,0.0003041,4]
[328440441,1717389059306,-500.0,0.0003041,4]
[328440442,1717389059315,-500.0,0.0003041,4]
[328440443,1717389059324,-815.25,0.0003041,4]
[328440444,1717389059333,-500.0,0.0003041,4]
[328440445,1717389059345,-559.21,0.0003041,4]
[328440446,1717389059354,-1934.31,0.0003041,4]
[328440447,1717389059364,-1176.86,0.0003041,4]
[328440448,1717389059373,-500.0,0.0003041,4]
[328440449,1717389059382,-2118.35,0.0003041,4]
[328440450,1717389059392,-759.25,0.0003041,4]
[328440451,1717389059402,-912.58,0.0003041,4]
[328440452,1717389059411,-500.0,0.0003041,4]
[328440453,1717389059421,-1405.62,0.0003041,4]
[328440454,1717389059430,-500.0,0.0003041,4]
[328440455,1717389059444,-1421.66,0.0003041,4]
[328440456,1717389059453,-252.4088404,0.0003041,4]
[328440457,1717389059462,-500.0,0.0003041,4]
[328440458,1717389059471,-122.12392866,0.0003041,4]
[328440459,1717389059488,-443.87607134,0.0003041,4]
[328440460,1717389059497,-1439.77494866,0.0003041,4]
[328440461,1717389059508,-2506.66505134,0.0003041,4]
[328440462,1717389059520,-530.15,0.0003041,4]
[328440463,1717389059529,-1447.14,0.0003041,4]
[328440464,1717389059539,-818.94,0.0003041,4]
[328440465,1717389059547,-12791.31,0.0003041,4]
[328440466,1717389059557,-733.27,0.0003041,4]
[328440467,1717389059567,-500.0,0.0003041,4]
[328440468,1717389059576,-500.0,0.0003041,4]
[328440469,1717389059585,-768.52,0.0003041,4]
[328440470,1717389059596,-500.0,0.0003041,4]
[328440471,1717389059606,-500.0,0.0003041,4]
[328440472,1717389059615,-558.76717808,0.0003041,4]
[328440473,1717389059625,-500.0,0.0003041,4]
[328440474,1717389059634,-500.0,0.0003041,4]
[328440475,1717389059643,-221.49010017,0.00030415,4]
[328440476,1717389059652,-2915.06,0.00030415,4]
[328440477,1717389059662,-982.37,0.00030415,4]
[328440478,1717389059671,-1544.48,0.00030415,4]
[328440479,1717389059680,-644.6,0.00030415,4]
[328440480,1717389059689,-547.39,0.00030415,4]
[328440481,1717389059699,-500.0,0.00030415,4]
[328440482,1717389059708,-1062.74,0.00030415,4]
[328440483,1717389059718,-1179.69,0.00030415,4]
[328440484,1717389059727,-785.78,0.00030415,4]
[328440485,1717389059737,-500.0,0.00030415,4]
[328440486,1717389059747,-309.55444685,0.00030415,4]
[328440487,1717389059756,-355.90677297,0.00030415,4]
[328440488,1717389059767,-1221.0,0.00030415,4]
[328440489,1717389059776,-748.54,0.00030415,4]
[328440490,1717389059786,-500.0,0.00030415,4]
[328440491,1717389059796,-801.18,0.00030415,4]
[328440492,1717389059806,-576.19,0.00030415,4]
[328440493,1717389059815,-1096.48,0.00030415,4]
[328440494,1717389059825,-525.18,0.00030415,4]
[328440495,1717389059879,-1379.61,0.00030415,4]
[328440496,1717389059888,-735.02,0.00030415,4]
[328440497,1717389059897,-327.20474031,0.00030415,4]
[328440498,1717389059907,-500.0,0.00030415,4]
[328440499,1717389059916,-500.0,0.00030415,4]
[328440500,1717389059925,-500.0,0.00030416,4]
[328440501,1717389059934,-500.0,0.00030416,4]
[328440502,1717389059943,-500.0,0.00030416,4]
[328440503,1717389059952,-500.0,0.00030416,4]
[328440504,1717389059961,-500.0,0.00030416,4]
[328440505,1717389059970,-500.0,0.00030416,4]
[328440506,1717389059979,-500.0,0.00030416,4]
[328440507,1717389059989,-500.0,0.00030416,4]
[328440508,1717389059998,-500.0,0.00030416,4]
[328440509,1717389060007,-500.0,0.00030416,4]
[328440510,1717389060016,-500.0,0.00030416,4]
[328440511,1717389060026,-541.29,0.00030416,4]
[328440512,1717389060037,-500.0,0.00030416,4]
[328440513,1717389060046,-500.0,0.00030416,4]
[328440514,1717389060056,-500.0,0.00030416,4]
[328440515,1717389060065,-500.0,0.00030416,4]
[328440516,1717389060075,-500.0,0.00030416,4]
[328440517,1717389060085,-500.0,0.00030416,4]
[328440518,1717389060096,-812.33,0.00030416,4]
[328440519,1717389060105,-553.30738442,0.00030416,4]
[328440520,1717389060114,-500.0,0.00030416,4]
[328440521,1717389060123,-500.0,0.00030416,4]
[328440522,1717389060132,-55459.24892572,0.0003048,2]
[328440523,1717389060141,-2327.084769,0.000305,2]
[328440524,1717389060150,-150.0,0.00030506,2]
[328440525,1717389060159,-13860.93441176,0.00030517,2]
[328440526,1717389060168,-601.111706,0.00030528,2]
[328440527,1717389060177,-721.375399,0.00030528,2]
[328440528,1717389060186,-318.108728,0.00030528,2]
[328440529,1717389060197,-150.0,0.00030548,2]
[328440530,1717389060206,-161.15735837,0.00030549,2]
[328440531,1717389060216,-157.62194438,0.000306,7]
[328440532,1717389060225,-734.08,0.00030612,2]
[328440533,1717389060235,-150.0,0.00030643,2]
[328440534,1717389060244,-500.0,0.00030684,4]
[328440535,1717389060253,-280.0,0.00030684,4]
[328440536,1717389060263,-500.0,0.00030684,4]
[328440537,1717389060272,-500.0,0.00030684,4]
[328440538,1717389060281,-500.0,0.00030684,4]
[328440539,1717389060290,-500.0,0.00030684,4]
[328440540,1717389060299,-500.0,0.00030684,4]
[328440541,1717389060308,-500.0,0.00030684,4]
[328440542,1717389060318,-4687.56,0.00030684,4]
[328440543,1717389060327,-4104.15,0.00030684,4]
[328440544,1717389060337,-1535.91,0.00030684,4]
[328440545,1717389060349,-910.08,0.00030684,4]
[328440546,1717389060358,-696.56,0.00030684,4]
[328440547,1717389060368,-227.63317627,0.00030684,4]
[328440548,1717389060378,-1151.42,0.00030684,4]
[328440549,1717389060387,-1173.66,0.00030684,4]
[328440550,1717389060396,-5921.43,0.00030684,4]
[328440551,1717389060405,-539.44,0.00030684,4]
[328440552,1717389060415,-848.91,0.00030684,4]
[328440553,1717389060423,-1286.49,0.00030684,4]
[328440554,1717389060432,-500.0,0.00030684,4]
[328440555,1717389060447,-632.25,0.00030684,4]
[328440556,1717389060455,-559.62,0.00030684,4]
[328440557,1717389060465,-565.7,0.00030684,4]
[328440558,1717389060474,-2118.74,0.00030684,4]
[328440559,1717389060484,-651.84,0.00030684,4]
[328440560,1717389060494,-909.21,0.00030684,4]
[328440561,1717389060503,-537.35,0.00030684,4]
[328440562,1717389060513,-500.0,0.00030684,4]
[328440563,1717389060525,-982.23,0.00030684,4]
[328440564,1717389060535,-4493.09,0.00030684,4]
[328440565,1717389060544,-500.0,0.00030684,4]
[328440566,1717389060553,-719.21,0.00030684,4]
[328440567,1717389060562,-793.36,0.00030684,4]
[328440568,1717389060572,-633.56,0.00030684,4]
[328440569,1717389060581,-500.0,0.00030684,4]
[328440570,1717389060592,-1664.07,0.00030684,4]
[328440571,1717389060600,-576.29,0.00030684,4]
[328440572,1717389060610,-500.0,0.00030684,4]
[328440573,1717389060619,-732.02,0.00030684,4]
[328440574,1717389060629,-1096.54,0.00030684,4]
[328440575,1717389060638,-583.29,0.00030684,4]
[328440576,1717389060648,-500.0,0.00030684,4]
[328440577,1717389060657,-574.86,0.00030684,4]
[328440578,1717389060666,-1037.87,0.00030684,4]
[328440579,1717389060675,-1896.28,0.00030684,4]
[328440580,1717389060684,-848.97,0.00030684,4]
[328440581,1717389060693,-994.65,0.00030684,4]
[328440582,1717389060703,-500.0,0.00030684,4]
[328440583,1717389060711,-696.39,0.00030684,4]
[328440584,1717389060721,-500.0,0.00030684,4]
[328440585,1717389060732,-1445.97,0.00030684,4]
[328440586,1717389060742,-855.5,0.00030684,4]
[328440587,1717389060751,-500.0,0.00030684,4]
[328440588,1717389060761,-509.19,0.00030684,4]
[328440589,1717389060771,-822.77,0.00030684,4]
[328440590,1717389060780,-500.0,0.00030684,4]
[328440591,1717389060789,-500.0,0.00030684,4]
[328440592,1717389060798,-815.25,0.00030684,4]
[328440593,1717389060807,-500.0,0.00030684,4]
[328440594,1717389060816,-559.21,0.00030684,4]
[328440595,1717389060825,-1934.31,0.00030684,4]
[328440596,1717389060835,-1176.86,0.00030684,4]
[328440597,1717389060848,-500.0,0.00030684,4]
[328440598,1717389060857,-2118.35,0.00030684,4]
[328440599,1717389060866,-759.25,0.00030684,4]
[328440600,1717389060875,-912.58,0.00030684,4]
[328440601,1717389060884,-500.0,0.00030684,4]
[328440602,1717389060894,-1405.62,0.00030684,4]
[328440603,1717389060903,-500.0,0.00030684,4]
[328440604,1717389060912,-1421.66,0.00030684,4]
[328440605,1717389060921,-500.0,0.00030684,4]
[328440606,1717389060931,-566.0,0.00030684,4]
[328440607,1717389060940,-3946.44,0.00030684,4]
[328440608,1717389060949,-530.15,0.00030684,4]
[328440609,1717389060958,-1447.14,0.00030684,4]
[328440610,1717389060968,-818.94,0.00030684,4]
[328440611,1717389060977,-12791.31,0.00030684,4]
[328440612,1717389060987,-733.27,0.00030684,4]
[328440613,1717389060996,-500.0,0.00030684,4]
[328440614,1717389061006,-500.0,0.00030684,4]
[328440615,1717389061015,-768.52,0.00030684,4]
[328440616,1717389061024,-500.0,0.00030684,4]
[328440617,1717389061034,-500.0,0.00030684,4]
[328440618,1717389061043,-500.0,0.00030684,4]
[328440619,1717389061053,-500.0,0.00030684,4]
[328440620,1717389061062,-223.721536,0.00030685,14]
[328440621,1717389061071,-2915.06,0.00030689,4]
[328440622,1717389061080,-982.37,0.00030689,4]
[328440623,1717389061092,-1544.48,0.00030689,4]
[328440624,1717389061101,-644.6,0.00030689,4]
[328440625,1717389061111,-547.39,0.00030689,4]
[328440626,1717389061121,-500.0,0.00030689,4]
[328440627,1717389061130,-1062.74,0.00030689,4]
[328440628,1717389061138,-1179.69,0.00030689,4]
[328440629,1717389061148,-785.78,0.00030689,4]
[328440630,1717389061157,-500.0,0.00030689,4]
[328440631,1717389061166,-1221.0,0.00030689,4]
[328440632,1717389061175,-748.54,0.00030689,4]
[328440633,1717389061184,-500.0,0.00030689,4]
[328440634,1717389061194,-801.18,0.00030689,4]
[328440635,1717389061203,-576.19,0.00030689,4]
[328440636,1717389061212,-1096.48,0.00030689,4]
[328440637,1717389061222,-525.18,0.00030689,4]
[328440638,1717389061232,-1379.61,0.00030689,4]
[328440639,1717389061241,-735.02,0.00030689,4]
[328440640,1717389061251,-500.0,0.00030689,4]
[328440641,1717389061260,-500.0,0.00030689,4]
[328440642,1717389061269,-500.0,0.0003069,4]
[328440643,1717389061279,-500.0,0.0003069,4]
[328440644,1717389061290,-500.0,0.0003069,4]
[328440645,1717389061299,-628.54001954,0.0003069,4]
[328440646,1717389061308,-500.0,0.0003069,4]
[328440647,1717389061318,-500.0,0.0003069,4]
[328440648,1717389061328,-500.0,0.0003069,4]
[328440649,1717389061337,-500.0,0.0003069,4]
[328440650,1717389061348,-500.0,0.0003069,4]
[328440651,1717389061357,-500.0,0.0003069,4]
[328440652,1717389061366,-500.0,0.0003069,4]
[328440653,1717389061375,-541.29,0.0003069,4]
[328440654,1717389061384,-500.0,0.0003069,4]
[328440655,1717389061394,-500.0,0.0003069,4]
[328440656,1717389061403,-299.04827377,0.0003069,4]
[328440657,1717389061412,-500.0,0.0003069,4]
[328440658,1717389061421,-327.96117229,0.0003069,4]
[328440659,1717389061431,-500.0,0.0003069,4]
[328440660,1717389061442,-812.33,0.0003069,4]
[328440661,1717389061452,-500.0,0.0003069,4]
[328440662,1717389061462,-500.0,0.0003069,4]
[328440663,1717389061471,-363.5778,0.000307,2]
[328440664,1717389061480,-5000.0,0.00030715,7]
[328440665,1717389061491,-808.0,0.00030753,2]
[328440666,1717389061500,-192.686,0.00030753,2]
[328440667,1717389061509,-219.792,0.00030753,2]
[328440668,1717389061519,-2422.258,0.00030753,2]
[328440669,1717389061528,-449.571,0.00030753,2]
[328440670,1717389061538,-1333.14,0.00030753,2]
[328440671,1717389061549,-158.411,0.00030753,2]
[328440672,1717389061559,-227.0,0.00030753,2]
[328440673,1717389061568,-3171.0,0.00030753,2]
[328440674,1717389061577,-553.97,0.00030753,2]
[328440675,1717389061586,-450.954,0.00030753,2]
[328440676,1717389061596,-302.717,0.00030753,2]
[328440677,1717389061605,-5147.0,0.00030753,2]
[328440678,1717389061615,-5821.561,0.00030753,2]
[328440679,1717389061624,-1023.553,0.00030753,2]
[328440680,1717389061633,-37998.0,0.00030753,2]
[328440681,1717389061642,-150.0,0.0003078,2]
[328440682,1717389061650,-152.48854641,0.00030787,7]
[328440683,1717389061659,-155.0,0.00030806,4]
[328440684,1717389061669,-150.0,0.00030822,2]
[328440685,1717389061678,-150.0,0.00030822,2]
[328440686,1717389061687,-150.0,0.00030822,2]
[328440687,1717389061696,-150.0,0.00030822,2]
[328440688,1717389061705,-334.35,0.00030822,2]
[328440689,1717389061714,-150.0,0.00030822,2]
[328440690,1717389061726,-155.58447713,0.00030838,7]
[328440691,1717389061735,-154.8446992,0.00030855,7]
[328440692,1717389061744,-155.04569471,0.00030855,7]
[328440693,1717389061753,-187.30573308,0.00030857,2]
[328440694,1717389061762,-5178.30688425,0.00030857,2]